[Event "Live Chess"]
[Site "Chess.com"]
[Date "2021.04.28"]
[Round "6"]
[White "hypermod"]
[Black "GiorgosTsolias"]
[Result "0-1"]
[CurrentPosition "4Rrk1/pp3ppp/2p5/P7/2NP4/2P2n1q/1PQ2P1P/R6K w - -"]
[Timezone "UTC"]
[ECO "C01"]
[ECOUrl "https://www.chess.com/openings/French-Defense-Exchange-Variation-3...exd5-4.Nc3-Nf6"]
[UTCDate "2021.04.28"]
[UTCTime "03:02:03"]
[WhiteElo "1800"]
[BlackElo "1679"]
[TimeControl "2100+2"]
[Termination "GiorgosTsolias won by resignation"]
[StartTime "03:02:03"]
[EndDate "2021.04.28"]
[EndTime "03:51:51"]
[Link "https://www.chess.com/game/live/13317748493"]

1. e4 {[%clk 0:35:00.4]} 1... e6 {[%clk 0:34:43.2]} 2. d4 {[%clk 0:34:57.8]} 2... d5 {[%clk 0:34:37.4]} 3. Nc3 {[%clk 0:34:52.4]} 3... Nf6 {[%clk 0:34:36.6]} 4. exd5 {[%clk 0:34:51.8]} 4... exd5 {[%clk 0:34:23.9]} 5. Nf3 {[%clk 0:34:50.2]} 5... Bf5 {[%clk 0:33:58.5]} 6. Be2 {[%clk 0:34:16.1]} 6... Nbd7 {[%clk 0:33:10.3]} 7. O-O {[%clk 0:34:12.4]} 7... Bd6 {[%clk 0:31:57.6]} 8. Nb5 {[%clk 0:33:44.8]} 8... Nb6 {[%clk 0:30:10.2]} 9. g3 {[%clk 0:32:59.9]} 9... O-O {[%clk 0:29:46.8]} 10. a4 {[%clk 0:32:18.9]} 10... Bb4 {[%clk 0:28:55.7]} 11. a5 {[%clk 0:32:14.6]} 11... Nc4 {[%clk 0:28:16]} 12. Bxc4 {[%clk 0:32:01.5]} 12... dxc4 {[%clk 0:28:09.2]} 13. c3 {[%clk 0:31:50.2]} 13... Be7 {[%clk 0:28:00.2]} 14. Bf4 {[%clk 0:31:47.3]} 14... c6 {[%clk 0:27:32.2]} 15. Na3 {[%clk 0:31:21.7]} 15... Qd5 {[%clk 0:27:16.3]} 16. Re1 {[%clk 0:30:11.3]} 16... Rae8 {[%clk 0:25:51.6]} 17. Nd2 {[%clk 0:29:58.6]} 17... Ne4 {[%clk 0:25:15.4]} 18. Ndxc4 {[%clk 0:29:38.6]} 18... Bh3 {[%clk 0:23:19.9]} 19. Ne3 {[%clk 0:29:14.6]} 19... Qd8 {[%clk 0:22:23.1]} 20. Qc2 {[%clk 0:26:25.9]} 20... Bg5 {[%clk 0:20:53.3]} 21. Bxg5 {[%clk 0:23:43]} 21... Nxg5 {[%clk 0:20:38.8]} 22. Re2 {[%clk 0:22:13.6]} 22... Nf3+ {[%clk 0:19:24.3]} 23. Kh1 {[%clk 0:22:06.3]} 23... Qg5 {[%clk 0:18:46.3]} 24. Nac4 {[%clk 0:21:33.6]} 24... Qh5 {[%clk 0:14:24.8]} 25. g4 {[%clk 0:19:07.3]} 25... Bxg4 {[%clk 0:09:09.9]} 26. Nxg4 {[%clk 0:18:06.5]} 26... Qxg4 {[%clk 0:08:54.8]} 27. Rxe8 {[%clk 0:17:28.8]} 27... Qh3 {[%clk 0:05:49.8]} 0-1

[Event "Live Chess"]
[Site "Chess.com"]
[Date "2021.04.28"]
[Round "6"]
[White "rtindru"]
[Black "SacrificeandCrush"]
[Result "1/2-1/2"]
[CurrentPosition "8/8/6p1/5k1p/R7/pr4PP/5PK1/8 w - -"]
[Timezone "UTC"]
[ECO "C00"]
[ECOUrl "https://www.chess.com/openings/French-Defense-Knight-Variation-2...d5"]
[UTCDate "2021.04.28"]
[UTCTime "03:02:03"]
[WhiteElo "1369"]
[BlackElo "1771"]
[TimeControl "2100+2"]
[Termination "Game drawn by repetition"]
[StartTime "03:02:03"]
[EndDate "2021.04.28"]
[EndTime "04:03:30"]
[Link "https://www.chess.com/game/live/13317749033"]

1. e4 {[%clk 0:34:48.2]} 1... e6 {[%clk 0:35:00]} 2. Nf3 {[%clk 0:34:05]} 2... d5 {[%clk 0:34:51.3]} 3. exd5 {[%clk 0:34:02.8]} 3... exd5 {[%clk 0:34:48]} 4. d4 {[%clk 0:34:02.4]} 4... Ne7 {[%clk 0:34:35.5]} 5. Bd3 {[%clk 0:29:28.7]} 5... Bf5 {[%clk 0:34:31.2]} 6. O-O {[%clk 0:29:25.7]} 6... Bxd3 {[%clk 0:34:31]} 7. Qxd3 {[%clk 0:29:27.6]} 7... g6 {[%clk 0:34:23]} 8. Bg5 {[%clk 0:28:33.5]} 8... Nbc6 {[%clk 0:29:49.7]} 9. Bf6 {[%clk 0:26:39.7]} 9... Rg8 {[%clk 0:29:43.1]} 10. Nc3 {[%clk 0:24:58.5]} 10... Qd7 {[%clk 0:27:37.6]} 11. Ne5 {[%clk 0:24:20.8]} 11... Nxe5 {[%clk 0:27:22.7]} 12. dxe5 {[%clk 0:23:37.6]} 12... c6 {[%clk 0:26:59.2]} 13. Na4 {[%clk 0:21:32.1]} 13... b6 {[%clk 0:23:52.9]} 14. Qa6 {[%clk 0:20:13.5]} 14... Qc8 {[%clk 0:23:43.4]} 15. Qe2 {[%clk 0:18:28.9]} 15... Qe6 {[%clk 0:23:03.7]} 16. c4 {[%clk 0:17:41.8]} 16... Bg7 {[%clk 0:22:10.8]} 17. cxd5 {[%clk 0:17:28.9]} 17... Nxd5 {[%clk 0:21:59.8]} 18. Rfe1 {[%clk 0:16:29.6]} 18... Kf8 {[%clk 0:19:18.8]} 19. Rac1 {[%clk 0:15:51.2]} 19... Bxf6 {[%clk 0:17:28.6]} 20. exf6 {[%clk 0:15:42.5]} 20... Qxf6 {[%clk 0:17:29.5]} 21. Nc3 {[%clk 0:15:30.1]} 21... Nxc3 {[%clk 0:17:20.6]} 22. Rxc3 {[%clk 0:15:27.2]} 22... Kg7 {[%clk 0:17:18.7]} 23. Rf3 {[%clk 0:15:18.9]} 23... Qd6 {[%clk 0:16:01.5]} 24. Rd1 {[%clk 0:15:07.5]} 24... Rge8 {[%clk 0:09:28.1]} 25. Rxd6 {[%clk 0:14:32.5]} 25... Rxe2 {[%clk 0:09:22.8]} 26. g3 {[%clk 0:14:29.8]} 26... Rxb2 {[%clk 0:09:11.8]} 27. a3 {[%clk 0:14:20.6]} 27... c5 {[%clk 0:08:27.9]} 28. Rd7 {[%clk 0:14:06.7]} 28... Rf8 {[%clk 0:06:57.1]} 29. Rxa7 {[%clk 0:14:04.9]} 29... Kh6 {[%clk 0:06:16.1]} 30. Rfxf7 {[%clk 0:13:15.4]} 30... Rxf7 {[%clk 0:06:12.3]} 31. Rxf7 {[%clk 0:13:15.6]} 31... b5 {[%clk 0:05:55.7]} 32. Rc7 {[%clk 0:13:10.8]} 32... c4 {[%clk 0:05:55]} 33. Rc5 {[%clk 0:12:46.4]} 33... Rb3 {[%clk 0:04:04.7]} 34. a4 {[%clk 0:12:19.2]} 34... bxa4 {[%clk 0:03:59.8]} 35. Rxc4 {[%clk 0:12:20]} 35... a3 {[%clk 0:04:00.9]} 36. Ra4 {[%clk 0:12:20.6]} 36... Kg5 {[%clk 0:03:46.6]} 37. Kg2 {[%clk 0:12:18.6]} 37... h5 {[%clk 0:03:45.4]} 38. h3 {[%clk 0:12:03]} 38... Kf5 {[%clk 0:03:34.8]} 39. Ra7 {[%clk 0:11:56.7]} 39... Rc3 {[%clk 0:03:26.1]} 40. Ra4 {[%clk 0:11:49.2]} 40... Ke5 {[%clk 0:03:05.3]} 41. Ra6 {[%clk 0:11:03]} 41... Kf5 {[%clk 0:02:32.5]} 42. Ra4 {[%clk 0:10:38.6]} 42... Rb3 {[%clk 0:02:28.7]} 43. Kf1 {[%clk 0:09:38]} 43... Ke5 {[%clk 0:02:21.1]} 44. Kg2 {[%clk 0:09:37.4]} 44... Kf5 {[%clk 0:02:14.3]} 1/2-1/2

[Event "Live Chess"]
[Site "Chess.com"]
[Date "2021.04.28"]
[Round "6"]
[White "prescott00000"]
[Black "aanval22"]
[Result "0-1"]
[CurrentPosition "4qrk1/6pp/bb6/p3P3/P2rpPP1/8/1P1Q1R1P/3R2K1 w - -"]
[Timezone "UTC"]
[ECO "C55"]
[ECOUrl "https://www.chess.com/openings/Italian-Game-Two-Knights-Open...6.Bb5-Ne4-7.Nxd4-Bc5"]
[UTCDate "2021.04.28"]
[UTCTime "03:02:15"]
[WhiteElo "1309"]
[BlackElo "1014"]
[TimeControl "2100+2"]
[Termination "aanval22 won by resignation"]
[StartTime "03:02:15"]
[EndDate "2021.04.28"]
[EndTime "03:37:57"]
[Link "https://www.chess.com/game/live/13317750093"]

1. e4 {[%clk 0:34:43.3]} 1... e5 {[%clk 0:34:59]} 2. Nf3 {[%clk 0:34:42.8]} 2... Nc6 {[%clk 0:34:59.1]} 3. Bc4 {[%clk 0:34:42.4]} 3... Nf6 {[%clk 0:34:59.7]} 4. d4 {[%clk 0:34:39.2]} 4... exd4 {[%clk 0:34:59.9]} 5. e5 {[%clk 0:34:37.8]} 5... d5 {[%clk 0:34:58.6]} 6. Bb5 {[%clk 0:34:37.7]} 6... Ne4 {[%clk 0:34:58.8]} 7. Nxd4 {[%clk 0:34:36.1]} 7... Bc5 {[%clk 0:34:58.4]} 8. Be3 {[%clk 0:34:34.4]} 8... O-O {[%clk 0:31:55.2]} 9. Bxc6 {[%clk 0:34:22.4]} 9... bxc6 {[%clk 0:31:51.2]} 10. O-O {[%clk 0:33:28.3]} 10... Qe8 {[%clk 0:30:37.5]} 11. f3 {[%clk 0:32:41.7]} 11... Nd6 {[%clk 0:29:22.9]} 12. f4 {[%clk 0:30:40.4]} 12... Ne4 {[%clk 0:28:27.6]} 13. Nd2 {[%clk 0:30:05.9]} 13... f5 {[%clk 0:27:59.5]} 14. Nxe4 {[%clk 0:26:01.3]} 14... fxe4 {[%clk 0:27:55.6]} 15. c3 {[%clk 0:25:35.1]} 15... Bb6 {[%clk 0:26:06]} 16. a4 {[%clk 0:22:22.4]} 16... a5 {[%clk 0:25:48.1]} 17. Qd2 {[%clk 0:20:27.7]} 17... Ba6 {[%clk 0:24:13.9]} 18. Rf2 {[%clk 0:20:03.9]} 18... Rd8 {[%clk 0:23:47.4]} 19. g4 {[%clk 0:18:51.1]} 19... c5 {[%clk 0:22:14.8]} 20. Ne2 {[%clk 0:18:32.8]} 20... d4 {[%clk 0:22:08.4]} 21. cxd4 {[%clk 0:18:24.4]} 21... cxd4 {[%clk 0:22:01.2]} 22. Nxd4 {[%clk 0:17:49.7]} 22... c5 {[%clk 0:21:54.8]} 23. Rd1 {[%clk 0:15:53.7]} 23... cxd4 {[%clk 0:21:53]} 24. Bxd4 {[%clk 0:15:50.3]} 24... Rxd4 {[%clk 0:20:52.9]} 0-1

[Event "Live Chess"]
[Site "Chess.com"]
[Date "2021.04.28"]
[Round "6"]
[White "aveevu"]
[Black "boozerrip"]
[Result "0-1"]
[CurrentPosition "8/R1b1k1pp/2qp4/4p3/7P/6PK/8/8 w - -"]
[Timezone "UTC"]
[ECO "B90"]
[ECOUrl "https://www.chess.com/openings/Sicilian-Defense-Open-Najdorf-Variation-6.a4-e5"]
[UTCDate "2021.04.28"]
[UTCTime "03:06:32"]
[WhiteElo "1632"]
[BlackElo "1350"]
[TimeControl "2100+2"]
[Termination "boozerrip won by resignation"]
[StartTime "03:06:32"]
[EndDate "2021.04.28"]
[EndTime "04:16:40"]
[Link "https://www.chess.com/game/live/13318291495"]

1. e4 {[%clk 0:35:00.8]} 1... c5 {[%clk 0:34:52.6]} 2. Nf3 {[%clk 0:34:59.2]} 2... d6 {[%clk 0:34:35.2]} 3. d4 {[%clk 0:34:58.8]} 3... cxd4 {[%clk 0:34:33.9]} 4. Nxd4 {[%clk 0:35:00.7]} 4... Nf6 {[%clk 0:34:34.5]} 5. Nc3 {[%clk 0:34:57.6]} 5... a6 {[%clk 0:34:16.5]} 6. a4 {[%clk 0:34:38.4]} 6... e5 {[%clk 0:33:24.3]} 7. Nf3 {[%clk 0:33:16.4]} 7... Be7 {[%clk 0:31:59.7]} 8. Be2 {[%clk 0:32:14.3]} 8... O-O {[%clk 0:30:58.3]} 9. h3 {[%clk 0:31:12.3]} 9... b6 {[%clk 0:27:17.3]} 10. Be3 {[%clk 0:30:39.4]} 10... Bb7 {[%clk 0:25:29]} 11. Nd5 {[%clk 0:27:28.2]} 11... Nxd5 {[%clk 0:24:36.1]} 12. exd5 {[%clk 0:27:26]} 12... f5 {[%clk 0:22:55.2]} 13. c4 {[%clk 0:26:17.8]} 13... f4 {[%clk 0:13:57.6]} 14. Bc1 {[%clk 0:26:07.7]} 14... Nd7 {[%clk 0:11:25.1]} 15. O-O {[%clk 0:25:18.6]} 15... Nc5 {[%clk 0:07:55.8]} 16. b4 {[%clk 0:24:38]} 16... Ne4 {[%clk 0:07:54]} 17. Bb2 {[%clk 0:22:25.9]} 17... Bc8 {[%clk 0:06:53.6]} 18. Bd3 {[%clk 0:21:16]} 18... Bf5 {[%clk 0:05:37.2]} 19. Qe2 {[%clk 0:18:05.4]} 19... Ng5 {[%clk 0:05:15.2]} 20. Nxg5 {[%clk 0:18:00.5]} 20... Bxg5 {[%clk 0:05:01.5]} 21. a5 {[%clk 0:16:28.3]} 21... Bxd3 {[%clk 0:03:07.2]} 22. Qxd3 {[%clk 0:16:25.7]} 22... f3 {[%clk 0:03:08.3]} 23. g3 {[%clk 0:11:13.7]} 23... Qd7 {[%clk 0:02:06.3]} 24. Kh2 {[%clk 0:09:58.3]} 24... Rf6 {[%clk 0:02:05.5]} 25. Rh1 {[%clk 0:08:09.9]} 25... Rh6 {[%clk 0:01:45.2]} 26. Qxf3 {[%clk 0:07:11.8]} 26... Rf8 {[%clk 0:00:43.8]} 27. Qxf8+ {[%clk 0:06:29.3]} 27... Kxf8 {[%clk 0:00:44.1]} 28. Kg2 {[%clk 0:06:30.6]} 28... Qf5 {[%clk 0:00:30.8]} 29. axb6 {[%clk 0:06:14.5]} 29... Qc8 {[%clk 0:00:28]} 30. c5 {[%clk 0:06:06.5]} 30... Qb7 {[%clk 0:00:25.1]} 31. c6 {[%clk 0:05:41.2]} 31... Qxb6 {[%clk 0:00:25.8]} 32. Bc3 {[%clk 0:05:14.3]} 32... Bd8 {[%clk 0:00:26.4]} 33. Bd2 {[%clk 0:05:02.9]} 33... Rf6 {[%clk 0:00:26.3]} 34. Be3 {[%clk 0:04:52.6]} 34... Qxb4 {[%clk 0:00:25.4]} 35. Rhd1 {[%clk 0:04:40.4]} 35... Qe4+ {[%clk 0:00:24.6]} 36. Kh2 {[%clk 0:04:32.3]} 36... Bc7 {[%clk 0:00:24.1]} 37. Rxa6 {[%clk 0:04:28.1]} 37... Qc4 {[%clk 0:00:23.9]} 38. Ra7 {[%clk 0:04:03.5]} 38... Qe2 {[%clk 0:00:20.7]} 39. Rg1 {[%clk 0:03:06.9]} 39... Rxf2+ {[%clk 0:00:19.4]} 40. Bxf2 {[%clk 0:03:06.8]} 40... Qxf2+ {[%clk 0:00:20.9]} 41. Rg2 {[%clk 0:03:07.8]} 41... Qxa7 {[%clk 0:00:22.4]} 42. h4 {[%clk 0:02:57.4]} 42... Ke7 {[%clk 0:00:23.6]} 43. Kh3 {[%clk 0:02:58.3]} 43... Qd4 {[%clk 0:00:24.5]} 44. Ra2 {[%clk 0:02:51.6]} 44... Qxd5 {[%clk 0:00:25.4]} 45. Ra7 {[%clk 0:02:52.6]} 45... Qxc6 {[%clk 0:00:25.6]} 0-1

[Event "Live Chess"]
[Site "Chess.com"]
[Date "2021.04.28"]
[Round "6"]
[White "sfdeals"]
[Black "dum2020arEEEWS"]
[Result "1/2-1/2"]
[CurrentPosition "4N3/R7/4kp2/4p3/8/1q2P1PP/p5BK/8 w - -"]
[Timezone "UTC"]
[ECO "A29"]
[ECOUrl "https://www.chess.com/openings/English-Opening-Four-Knights-Kingside-Fianchetto-Line...5.cxd5-Nxd5-6.Bg2-Nb6"]
[UTCDate "2021.04.28"]
[UTCTime "03:02:15"]
[WhiteElo "1456"]
[BlackElo "1015"]
[TimeControl "2100+2"]
[Termination "Game drawn by repetition"]
[StartTime "03:02:15"]
[EndDate "2021.04.28"]
[EndTime "04:00:10"]
[Link "https://www.chess.com/game/live/13317750713"]

1. c4 {[%clk 0:34:56.9]} 1... e5 {[%clk 0:34:50.5]} 2. Nc3 {[%clk 0:34:56]} 2... Nc6 {[%clk 0:34:48.7]} 3. Nf3 {[%clk 0:34:55.4]} 3... Nf6 {[%clk 0:34:48.4]} 4. g3 {[%clk 0:34:55.1]} 4... d5 {[%clk 0:34:47.3]} 5. cxd5 {[%clk 0:34:52.5]} 5... Nxd5 {[%clk 0:34:46.7]} 6. Bg2 {[%clk 0:34:47.4]} 6... Nb6 {[%clk 0:34:43.6]} 7. d3 {[%clk 0:34:21.3]} 7... Be7 {[%clk 0:34:34.8]} 8. Bd2 {[%clk 0:33:54.5]} 8... O-O {[%clk 0:34:30.9]} 9. a3 {[%clk 0:33:26.7]} 9... a5 {[%clk 0:34:04.2]} 10. O-O {[%clk 0:33:14.8]} 10... Bg4 {[%clk 0:33:43.3]} 11. h3 {[%clk 0:32:05.8]} 11... Bh5 {[%clk 0:33:35.1]} 12. Re1 {[%clk 0:31:08.5]} 12... f6 {[%clk 0:32:04.1]} 13. Qc2 {[%clk 0:30:33.6]} 13... Bc5 {[%clk 0:31:05.2]} 14. Rac1 {[%clk 0:29:06.7]} 14... Qe7 {[%clk 0:29:45.7]} 15. Ne4 {[%clk 0:27:33.4]} 15... Bd6 {[%clk 0:29:11.9]} 16. Be3 {[%clk 0:25:39.2]} 16... Nd5 {[%clk 0:28:40.4]} 17. Nxd6 {[%clk 0:25:15]} 17... Nxe3 {[%clk 0:28:23.1]} 18. fxe3 {[%clk 0:23:51.2]} 18... Qxd6 {[%clk 0:28:10.6]} 19. Qb3+ {[%clk 0:22:11.1]} 19... Bf7 {[%clk 0:27:32.5]} 20. Qxb7 {[%clk 0:20:59.2]} 20... Bd5 {[%clk 0:27:06]} 21. e4 {[%clk 0:19:52.5]} 21... Rfb8 {[%clk 0:26:20]} 22. Qxb8+ {[%clk 0:15:45.1]} 22... Rxb8 {[%clk 0:26:15.7]} 23. exd5 {[%clk 0:15:44.1]} 23... Qxd5 {[%clk 0:25:39.7]} 24. Nh4 {[%clk 0:13:52.6]} 24... Qd4+ {[%clk 0:24:50.7]} 25. e3 {[%clk 0:13:41.8]} 25... Qxb2 {[%clk 0:24:46]} 26. Bxc6 {[%clk 0:13:04]} 26... Qxa3 {[%clk 0:24:42.9]} 27. Bd5+ {[%clk 0:11:50.9]} 27... Kf8 {[%clk 0:24:25.4]} 28. Rxc7 {[%clk 0:10:33.3]} 28... Qxd3 {[%clk 0:24:10.7]} 29. Bg2 {[%clk 0:06:44.3]} 29... Rb1 {[%clk 0:22:40.4]} 30. Rxb1 {[%clk 0:05:35.8]} 30... Qxb1+ {[%clk 0:22:35.9]} 31. Kh2 {[%clk 0:05:35.1]} 31... Qb6 {[%clk 0:22:17.3]} 32. Rc3 {[%clk 0:05:16.7]} 32... a4 {[%clk 0:19:56.2]} 33. Rc8+ {[%clk 0:04:55.6]} 33... Ke7 {[%clk 0:19:51.5]} 34. Ra8 {[%clk 0:04:44.7]} 34... Qb3 {[%clk 0:19:12.3]} 35. Nf5+ {[%clk 0:03:57.6]} 35... Kf7 {[%clk 0:18:48.2]} 36. Ra7+ {[%clk 0:03:45.5]} 36... Ke6 {[%clk 0:18:23.3]} 37. Nxg7+ {[%clk 0:03:32.6]} 37... Kd6 {[%clk 0:18:20.4]} 38. Ne8+ {[%clk 0:02:38.7]} 38... Ke6 {[%clk 0:18:06]} 39. Ng7+ {[%clk 0:01:27]} 39... Kd6 {[%clk 0:18:02.5]} 40. Ne8+ {[%clk 0:01:11.5]} 40... Ke6 {[%clk 0:16:43.2]} 41. Rxh7 {[%clk 0:00:38.5]} 41... a3 {[%clk 0:16:36.3]} 42. Ra7 {[%clk 0:00:22.6]} 42... a2 {[%clk 0:16:29.6]} 43. Ng7+ {[%clk 0:00:22]} 43... Kd6 {[%clk 0:16:22.6]} 44. Ne8+ {[%clk 0:00:20.8]} 44... Ke6 {[%clk 0:15:46.9]} 45. Ng7+ {[%clk 0:00:20.6]} 45... Kd6 {[%clk 0:15:39.5]} 46. Ne8+ {[%clk 0:00:20.7]} 46... Ke6 {[%clk 0:15:11.9]} 1/2-1/2

[Event "Live Chess"]
[Site "Chess.com"]
[Date "2021.04.28"]
[Round "6"]
[White "ahyanzaman"]
[Black "swimgrass"]
[Result "0-1"]
[CurrentPosition "4r1k1/3qr1p1/1p2p1bp/p1p5/3N1Q2/2P1RP2/PP4PP/3R2K1 w - -"]
[Timezone "UTC"]
[ECO "C01"]
[ECOUrl "https://www.chess.com/openings/French-Defense-Exchange-Variation-3...exd5-4.Nf3-Nf6"]
[UTCDate "2021.04.28"]
[UTCTime "03:02:29"]
[WhiteElo "1699"]
[BlackElo "1363"]
[TimeControl "2100+2"]
[Termination "swimgrass won by resignation"]
[StartTime "03:02:29"]
[EndDate "2021.04.28"]
[EndTime "03:45:58"]
[Link "https://www.chess.com/game/live/13317752363"]

1. e4 {[%clk 0:34:59.2]} 1... e6 {[%clk 0:34:25.3]} 2. d4 {[%clk 0:34:56.4]} 2... d5 {[%clk 0:34:23]} 3. exd5 {[%clk 0:34:56.1]} 3... exd5 {[%clk 0:34:14.9]} 4. Nf3 {[%clk 0:34:51]} 4... Nf6 {[%clk 0:34:11.5]} 5. Bg5 {[%clk 0:34:49.2]} 5... Be7 {[%clk 0:33:57.5]} 6. Bd3 {[%clk 0:34:46.6]} 6... Bg4 {[%clk 0:33:09.8]} 7. O-O {[%clk 0:34:45]} 7... O-O {[%clk 0:31:12.1]} 8. Re1 {[%clk 0:34:25.1]} 8... Nc6 {[%clk 0:30:52.1]} 9. c3 {[%clk 0:34:23]} 9... Re8 {[%clk 0:29:33.6]} 10. Nbd2 {[%clk 0:33:33.9]} 10... Qd7 {[%clk 0:29:12.9]} 11. Qc2 {[%clk 0:33:21.2]} 11... h6 {[%clk 0:27:29.9]} 12. Bh4 {[%clk 0:32:58.7]} 12... a6 {[%clk 0:26:37.2]} 13. Nb3 {[%clk 0:31:19.9]} 13... b6 {[%clk 0:26:19.7]} 14. Ne5 {[%clk 0:30:33.8]} 14... Nxe5 {[%clk 0:25:02.6]} 15. dxe5 {[%clk 0:30:26.9]} 15... Ne4 {[%clk 0:24:46.3]} 16. Bxe7 {[%clk 0:30:16.8]} 16... Rxe7 {[%clk 0:24:38.9]} 17. Bxe4 {[%clk 0:30:17.2]} 17... dxe4 {[%clk 0:24:28.9]} 18. Qxe4 {[%clk 0:30:11.9]} 18... Rae8 {[%clk 0:24:18.2]} 19. f3 {[%clk 0:29:54.5]} 19... Bf5 {[%clk 0:22:19.5]} 20. Qd4 {[%clk 0:29:37]} 20... Qc6 {[%clk 0:19:06.9]} 21. Qf4 {[%clk 0:28:20.3]} 21... Bg6 {[%clk 0:18:07.9]} 22. Nd4 {[%clk 0:27:41]} 22... Qd7 {[%clk 0:16:10.7]} 23. Rad1 {[%clk 0:27:17.6]} 23... a5 {[%clk 0:13:43.2]} 24. Re3 {[%clk 0:21:23.9]} 24... c5 {[%clk 0:13:18.7]} 25. e6 {[%clk 0:17:52]} 25... fxe6 {[%clk 0:11:40.7]} 0-1

[Event "Live Chess"]
[Site "Chess.com"]
[Date "2021.04.28"]
[Round "6"]
[White "SunnyCountry"]
[Black "andrewaballantyne"]
[Result "1-0"]
[CurrentPosition "8/1p6/5ppk/p7/P7/1qP4P/4Q1P1/3QK3 w - -"]
[Timezone "UTC"]
[ECO "C53"]
[ECOUrl "https://www.chess.com/openings/Giuoco-Piano-Game-Main-Line-Giuoco-Pianissimo-Variation"]
[UTCDate "2021.04.28"]
[UTCTime "03:02:30"]
[WhiteElo "1197"]
[BlackElo "1227"]
[TimeControl "2100+2"]
[Termination "SunnyCountry won by resignation"]
[StartTime "03:02:30"]
[EndDate "2021.04.28"]
[EndTime "03:51:51"]
[Link "https://www.chess.com/game/live/13317752737"]

1. e4 {[%clk 0:35:00.5]} 1... e5 {[%clk 0:34:57]} 2. Nf3 {[%clk 0:34:54]} 2... Nc6 {[%clk 0:34:56.4]} 3. Bc4 {[%clk 0:34:38.9]} 3... Bc5 {[%clk 0:34:54.8]} 4. c3 {[%clk 0:34:17.7]} 4... Nf6 {[%clk 0:34:51]} 5. d3 {[%clk 0:34:11.9]} 5... O-O {[%clk 0:34:42.6]} 6. O-O {[%clk 0:33:37.5]} 6... d6 {[%clk 0:34:36.3]} 7. a4 {[%clk 0:33:36.1]} 7... a5 {[%clk 0:34:33.4]} 8. Nbd2 {[%clk 0:32:57.5]} 8... Be6 {[%clk 0:34:19.2]} 9. h3 {[%clk 0:32:01.4]} 9... d5 {[%clk 0:33:59.3]} 10. exd5 {[%clk 0:31:44.3]} 10... Bxd5 {[%clk 0:33:56]} 11. Bxd5 {[%clk 0:31:38.6]} 11... Qxd5 {[%clk 0:33:56]} 12. Nb3 {[%clk 0:29:29.1]} 12... Bb6 {[%clk 0:32:34.1]} 13. Qc2 {[%clk 0:29:01.4]} 13... e4 {[%clk 0:31:55.6]} 14. dxe4 {[%clk 0:27:55.3]} 14... Nxe4 {[%clk 0:31:04.5]} 15. Be3 {[%clk 0:27:20.3]} 15... Bxe3 {[%clk 0:30:28.8]} 16. fxe3 {[%clk 0:26:47.7]} 16... Rad8 {[%clk 0:30:00.6]} 17. Rad1 {[%clk 0:26:31.5]} 17... Qc4 {[%clk 0:29:12.4]} 18. Nfd4 {[%clk 0:25:57.4]} 18... Ng3 {[%clk 0:28:07.4]} 19. Rf3 {[%clk 0:25:16.5]} 19... Nxd4 {[%clk 0:27:54.9]} 20. Nxd4 {[%clk 0:24:55.6]} 20... c5 {[%clk 0:26:16.6]} 21. Rxg3 {[%clk 0:24:08]} 21... cxd4 {[%clk 0:26:15.9]} 22. Rxd4 {[%clk 0:24:02.8]} 22... Rxd4 {[%clk 0:26:14.6]} 23. exd4 {[%clk 0:23:58.3]} 23... Re8 {[%clk 0:26:05.5]} 24. Qd1 {[%clk 0:21:17.9]} 24... Qa2 {[%clk 0:24:08.7]} 25. b3 {[%clk 0:16:58.5]} 25... Qb2 {[%clk 0:23:17.3]} 26. d5 {[%clk 0:15:26.1]} 26... g6 {[%clk 0:22:48.4]} 27. d6 {[%clk 0:14:51.9]} 27... Kf8 {[%clk 0:22:34.3]} 28. d7 {[%clk 0:14:18.3]} 28... Rd8 {[%clk 0:22:33.2]} 29. Qd6+ {[%clk 0:13:55.2]} 29... Kg7 {[%clk 0:22:32.3]} 30. Qe7 {[%clk 0:13:31.9]} 30... Qc1+ {[%clk 0:21:25.1]} 31. Kh2 {[%clk 0:13:27]} 31... h5 {[%clk 0:20:24.4]} 32. Qxd8 {[%clk 0:13:18.4]} 32... Qf4 {[%clk 0:20:17.1]} 33. Qe7 {[%clk 0:13:03]} 33... h4 {[%clk 0:20:04.2]} 34. Qe3 {[%clk 0:12:30]} 34... hxg3+ {[%clk 0:18:58.1]} 35. Qxg3 {[%clk 0:12:29.1]} 35... Qd2 {[%clk 0:18:00.3]} 36. Qe5+ {[%clk 0:12:27.2]} 36... f6 {[%clk 0:17:06.1]} 37. Qe7+ {[%clk 0:12:18.5]} 37... Kh6 {[%clk 0:17:00.7]} 38. d8=Q {[%clk 0:10:50.6]} 38... Qf4+ {[%clk 0:16:51.1]} 39. Kg1 {[%clk 0:10:50]} 39... Qc1+ {[%clk 0:16:48]} 40. Kf2 {[%clk 0:10:47.7]} 40... Qc2+ {[%clk 0:16:24.8]} 41. Qe2 {[%clk 0:10:46]} 41... Qf5+ {[%clk 0:16:17]} 42. Kg3 {[%clk 0:10:26.4]} 42... Qg5+ {[%clk 0:16:02.7]} 43. Kf2 {[%clk 0:10:00.6]} 43... Qf5+ {[%clk 0:14:59.7]} 44. Ke1 {[%clk 0:09:50.7]} 44... Qb1+ {[%clk 0:14:32.1]} 45. Qdd1 {[%clk 0:09:41.1]} 45... Qxb3 {[%clk 0:14:23.3]} 1-0